[Event "89_| Campeonato Brasileiro 2023"]
[Site "Recife"]
[Date "2023.12.20"]
[Round "10.6"]
[White "Matsuura, Everaldo"]
[Black "Aranha Filho, Alvaro Z."]
[Result "1-0"]
[ECO "A13"]
[WhiteElo "2418"]
[BlackElo "2182"]
[PlyCount "74"]
[EventDate "2023.??.??"]
[EventCountry "BRA"]
[WhiteTeam "BRA"]
[BlackTeam "BRA"]
[TimeControl "90+30"]
[WhiteClock "0:07:07"]
[BlackClock "0:27:58"]

{[%evp 17,74,29,30,32,35,41,107,100,116,122,203,167,184,195,196,104,171,160,
172,147,157,112,125,121,141,141,148,146,146,123,184,175,185,170,165,147,201,
187,248,254,249,258,292,284,281,201,213,189,428,283,403,336,450,377,571,612,
892,795,29999]} 1. c4 {[%emt 0:00:00]} e6 {[%emt 0:00:00]} 2. Nf3 {[%emt 0:00:
00]} d5 {[%emt 0:00:00]} 3. e3 {[%emt 0:00:00]} Nf6 {[%emt 0:00:00]} 4. Nc3 {
[%emt 0:00:00]} Be7 {[%emt 0:00:00]} 5. b3 {[%emt 0:00:00]} O-O {[%emt 0:00:00]
} 6. Bb2 {[%emt 0:00:00]} c5 {[%emt 0:00:00]} 7. cxd5 {[%emt 0:00:00]} Nxd5 {
[%emt 0:00:00]} 8. Nxd5 {[%emt 0:00:00]} Qxd5 {[%emt 0:00:00]} 9. Bc4 {[%emt 0:
00:00]} Qd8 {[%emt 0:00:00]} 10. O-O {[%emt 0:00:00] A13: English Opening: 1...
e6.} Nc6 {[%emt 0:00:00]} 11. Qc2 {[%emt 0:00:00]} Bf6 $146 {[%eval 107,29] 
[%emt 0:00:00]} (11... Bd7 $14 {[%eval 41,29]}) ({Predecessor:} 11... b6 12.
Rfd1 Bf6 13. d4 Qe7 14. dxc5 Bxb2 15. Qxb2 bxc5 16. Bd3 Bb7 17. Be4 Rfd8 {
1/2-1/2 (36) Gukesh,D (2563)-Visakh,N (2516) Chess.com INT 2020}) 12. Bxf6 $1
$16 {[%emt 0:00:00] White is better.} Qxf6 {[%emt 0:00:00]} 13. Bd3 {[%emt 0:
00:00]} h6 {[%eval 203,29] [%emt 0:00:00]} (13... b6 $16 {[%eval 122,33]}) 14.
Qxc5 {[%emt 0:00:00]} Rd8 {[%emt 0:00:00]} 15. Be4 {[%emt 0:00:00]} Bd7 {
[%emt 0:00:00]} 16. Qc3 {[%eval 104,29] [%emt 0:00:00]} (16. d4 $18 {[%eval
196,28]}) 16... Qe7 {[%eval 171,28] [%emt 0:00:00]} (16... Qxc3 $16 {[%eval
104,29]} 17. dxc3 f5) 17. d4 $18 {[%emt 0:00:00]} Rac8 {[%emt 0:00:00]} 18. Qb2
{[%emt 0:00:00]} f5 {[%emt 0:00:00]} 19. Bxc6 {[%eval 112,32] [%emt 0:00:00]} (
19. Bc2 $142 {[%eval 157,30]}) 19... Bxc6 $16 {[%emt 0:00:00]} 20. Ne5 {
[%emt 0:00:00]} Be4 {[%emt 0:00:00] next ...Rc2 is good for Black.} 21. Rac1 {
[%emt 0:00:00]} Qg5 {[%emt 0:00:00][%csl Ge4][%cal Rg5g2] [#]} 22. g3 $1 {
[%emt 0:00:00]} Qh5 {[%emt 0:00:00]} 23. Rc3 {[%emt 0:00:00]} Rxc3 {[%eval 184,
30] [%emt 0:00:00]} (23... a5 $16 {[%eval 123,30]} 24. f3 Bd5 25. Rxc8 Rxc8)
24. Qxc3 $18 {[%emt 0:00:00]} Bd5 {[%emt 0:00:00]} 25. f3 {[%emt 0:00:00]} Qe8
{[%emt 0:00:00]} 26. Qd3 {[%emt 0:00:00]} b5 {[%eval 201,31] [%emt 0:00:00]} (
26... a5 $16 {[%eval 147,33] was worth a try.} 27. Rf2 Qe7) 27. Rc1 {[%emt 0:
00:00]} Rc8 {[%eval 248,25] [%emt 0:00:00] [#]} (27... a5 {[%eval 187,31]
keeps fighting.} 28. Qd2 b4) 28. Rc5 $1 {[%emt 0:00:00]} Rxc5 {[%emt 0:00:00]}
29. dxc5 {[%emt 0:00:00]} Qb8 {[%emt 0:00:00]} 30. Qd4 {[%emt 0:00:00]} Qb7 {
[%emt 0:00:00]} 31. Kf2 {[%emt 0:00:00]} b4 {[%emt 0:00:00]} 32. h4 {[%emt 0:
00:00]} h5 $2 {[%eval 428,29] [%emt 0:00:00]} (32... Qa6 {[%eval 189,30] might
work better.}) 33. Ng6 {[%emt 0:08:57]} Kf7 {[%eval 403,32] [%emt 0:00:00]} (
33... Qa6 $142 {[%eval 283,30]} 34. Qd2 Qa5) 34. Nf4 {[%emt 0:00:31]} Bxf3 {
[%emt 0:00:00]} 35. Qe5 {[%emt 0:00:29]} Qc6 {[%eval 571,41] [%emt 0:00:00] [#]
} (35... Qa6 {[%eval 377,35] is a better defense.} 36. Qc7+ Kg8) 36. Nxe6 $1 {
[%emt 0:02:35][%mdl 512]} Qd5 {[%emt 0:00:00]} (36... Qxe6 37. Qxe6+) 37. Ng5+
{[%emt 0:00:21][%mdl 64] Double Attack} Kg8 {[%emt 0:00:00] Accuracy: White =
73%, Black = 34%.} 1-0

[Event "89_| Campeonato Brasileiro 2023"]
[Site "Recife"]
[Date "2023.12.20"]
[Round "10.7"]
[White "Casalaspro, Mathias Andre"]
[Black "Molina, Roberto Junio Brito"]
[Result "0-1"]
[ECO "B21"]
[WhiteElo "2054"]
[BlackElo "2381"]
[PlyCount "58"]
[EventDate "2023.??.??"]
[EventCountry "BRA"]
[WhiteTeam "BRA"]
[BlackTeam "BRA"]
[TimeControl "90+30"]
[WhiteClock "0:28:25"]
[BlackClock "0:27:58"]

{[%evp 9,58,0,0,-5,28,0,0,0,0,0,0,0,0,0,13,-9,-7,-17,-17,-40,0,-59,8,-33,0,-3,
29,25,107,56,54,60,50,57,54,-22,-32,-227,-72,-192,-57,-165,-157,-158,-75,-93,
-60,-149,-140,-254,44]} 1. e4 {[%emt 0:00:00]} c5 {[%emt 0:00:00]} 2. d4 {
[%emt 0:00:00]} cxd4 {[%emt 0:00:00]} 3. Qxd4 {[%emt 0:00:00]} Nc6 {[%emt 0:00:
00]} 4. Qd3 {[%emt 0:00:00]} Nf6 {[%emt 0:00:00]} 5. Nc3 {[%emt 0:00:00]} e6 {
[%emt 0:00:00]} 6. Bf4 {[%emt 0:00:00] B21: Sicilian: 2 f4 and Morra Gambit.}
Bb4 {[%emt 0:00:00]} 7. Bd6 $146 {[%emt 0:00:00]} ({Predecessor:} 7. Nge2 O-O
8. O-O-O d5 9. exd5 exd5 10. Nxd5 Nxd5 11. Qxd5 Qe7 12. Bd6 Bxd6 13. Qxd6 {
1/2-1/2 (69) Shimanov,A (2581)-Caruana,F (2766) Chess.com INT 2023}) 7... Bxd6
{[%emt 0:00:00]} 8. Qxd6 {[%emt 0:00:00] The position is equal.} Qe7 {[%emt 0:
00:00]} 9. O-O-O {[%emt 0:00:00]} Qxd6 {[%emt 0:00:00]} 10. Rxd6 {[%emt 0:00:
00]} Ke7 {[%emt 0:00:00]} 11. Rd2 {[%emt 0:00:00]} d6 {[%emt 0:00:00]} 12. f3 {
[%emt 0:00:00]} a6 {[%emt 0:00:00]} 13. a4 {[%emt 0:00:00]} Bd7 {[%emt 0:00:00]
} 14. Nh3 {[%emt 0:00:00]} Rhc8 {[%emt 0:00:00]} 15. Be2 {[%eval -59,27] [%emt
0:00:00]} (15. b3 $11 {[%eval 0,30]}) 15... Ne5 {[%eval 8,31] [%emt 0:00:00]} (
15... e5 $15 {[%eval -59,27]}) 16. f4 {[%eval -33,29] [%emt 0:00:00]} (16. Rhd1
$11 {[%eval 8,31] should be considered.}) 16... Ng6 {[%emt 0:00:00]} 17. Bf3 $1
{[%emt 0:00:00]} Bc6 {[%emt 0:00:00]} 18. Rhd1 {[%emt 0:00:00]} Nd7 {[%eval
107,24] [%emt 0:00:00]} (18... Ne8 $11 {[%eval 25,31] keeps the balance.}) 19.
Rd4 {[%eval 56,32] [%emt 0:00:00]} ({Better is} 19. Rxd6 $16 {[%eval 107,24]}
Nh4 20. a5) 19... e5 $14 {[%emt 0:00:00]} 20. fxe5 {[%emt 0:00:00]} dxe5 {
[%emt 0:00:00]} 21. R4d2 $1 {[%emt 0:00:00]} Nc5 {[%emt 0:00:00]} 22. Nd5+ {
[%eval -22,28] [%emt 0:00:00]} (22. a5 $1 $14 {[%eval 54,32]}) 22... Bxd5 $11 {
[%emt 0:00:00]} 23. exd5 $2 {[%eval -227,22] [%emt 0:00:00] [#]} (23. Rxd5 $15
{[%eval -32,29]} f6 24. b4 Nxa4 25. Rd7+ Kf8 26. Rxb7) 23... Kd6 $2 {[%eval
-72,28] [%emt 0:00:00]} (23... Nb3+ $1 $19 {[%eval -227,22]} 24. Kb1 Nxd2+ 25.
Rxd2 Rd8) 24. Ng5 {[%eval -192,28] [%emt 0:00:00]} (24. Re2 $17 {[%eval -72,28]
is a better defense.}) 24... Rc7 {[%eval -57,29] [%emt 0:00:00]} (24... Nb3+
$19 {[%eval -192,28]} 25. Kb1 Nxd2+ 26. Rxd2 f5) 25. Ne4+ {[%eval -165,28] 
[%emt 0:00:00]} (25. Kb1 $15 {[%eval -57,29]}) 25... Nxe4 $19 {[%emt 0:00:00]}
26. Bxe4 {[%emt 0:00:00]} Ne7 {[%eval -75,28] [%emt 0:00:00]} (26... Rc4 $142 {
[%eval -158,26]} 27. Bxg6 hxg6) 27. Rf1 {[%emt 0:00:00]} Rc4 {[%emt 0:00:00]}
28. Bxh7 {[%eval -149,27] [%emt 0:00:00]} (28. Re2 $15 {[%eval -60,32]} f5 29.
Bxf5) 28... Rxa4 $17 {[%emt 0:00:00][%cal Ra4a1]} 29. c3 {[%eval -254,26] 
[%emt 0:00:00] [#]} (29. Kb1 $17 {[%eval -140,32]} Rh8 30. b3) 29... e4 $2 {
[%eval 44,26] [%emt 0:00:00][%mdl 32768] Accuracy: White = 34%, Black = 43%. .
Loss on time!?} ({Black should try} 29... f5 $1 $19 {[%eval -254,26]} 30. Kc2
g6 31. Bxg6 Nxg6 32. Rxf5 Rf8) 0-1